fUST/lending_fUST_20250118
["ID","MTS","AMOUNT","RATE_DAILY","PERIOD"]
[349461062,1737193847627,-1368.38191979,0.00022383,3]
[349461064,1737193847637,-1368.38191979,0.00022452,3]
[349461066,1737193847647,-500.0,0.00022465,3]
[349461068,1737193847658,-448.15,0.00022465,3]
[349461070,1737193847667,-500.0,0.00022465,3]
[349461072,1737193847676,-517.16,0.00022465,2]
[349461074,1737193847686,-500.0,0.00022465,3]
[349461076,1737193847695,-500.0,0.00022465,3]
[349461078,1737193847705,-500.0,0.00022465,3]
[349461080,1737193847715,-500.0,0.00022465,3]
[349461082,1737193847724,-500.0,0.00022465,3]
[349461084,1737193847733,-500.0,0.00022465,3]
[349461086,1737193847743,-500.0,0.00022465,3]
[349461088,1737193847752,-2224.54,0.00022465,3]
[349461090,1737193847762,-363.77,0.00022465,3]
[349461092,1737193847771,-500.0,0.00022465,3]
[349461094,1737193847781,-500.0,0.00022465,3]
[349461096,1737193847790,-500.0,0.00022465,3]
[349461098,1737193847799,-500.0,0.00022465,3]
[349461100,1737193847809,-500.0,0.00022465,3]
[349461102,1737193847820,-500.0,0.00022465,3]
[349461114,1737193847917,-500.0,0.00022465,3]
[349461116,1737193847927,-3655.5,0.00022465,3]
[349461118,1737193847937,-500.0,0.00022465,3]
[349461120,1737193847947,-500.0,0.00022465,3]
[349461121,1737193847956,-500.0,0.00022465,3]
[349461123,1737193847965,-500.0,0.00022465,3]
[349461125,1737193847978,-500.0,0.00022465,3]
[349461127,1737193847988,-185.1,0.00022465,3]
[349461129,1737193847998,-508.66,0.00022465,3]
[349461131,1737193848007,-240.28,0.00022465,3]
[349461133,1737193848017,-500.0,0.00022465,3]
[349461135,1737193848028,-593.97,0.00022465,3]
[349461137,1737193848038,-500.0,0.00022465,3]
[349461139,1737193848047,-1483.05,0.00022465,3]
[349461141,1737193848057,-500.0,0.00022465,3]
[349461143,1737193848069,-1460.06,0.00022465,3]
[349461145,1737193848079,-5109.75,0.00022465,3]
[349461147,1737193848089,-500.0,0.00022465,3]
[349461149,1737193848100,-500.0,0.00022465,3]
[349461151,1737193848110,-500.0,0.00022465,3]
[349461153,1737193848119,-502.19903948,0.00022465,3]
[349461155,1737193848129,-500.0,0.00022465,3]
[349461157,1737193848138,-500.0,0.00022465,3]
[349461159,1737193848148,-500.0,0.00022465,3]
[349461161,1737193848157,-8817.53,0.000225,2]
[349461163,1737193848167,-500.0,0.000225,2]
[349461165,1737193848176,-500.0,0.000225,7]
[349461167,1737193848186,-155.0,0.00022507,2]
[349461169,1737193848195,-155.0,0.00022507,2]
[349461171,1737193848204,-155.0,0.00022507,2]
[349461173,1737193848213,-155.0,0.00022507,2]
[349461175,1737193848223,-155.0,0.00022507,2]
[349461177,1737193848232,-155.0,0.00022507,2]
[349461178,1737193848242,-155.0,0.00022507,2]
[349461179,1737193848251,-155.0,0.00022507,2]
[349461180,1737193848260,-155.0,0.00022507,2]
[349461181,1737193848270,-155.0,0.00022507,2]
[349461182,1737193848279,-155.0,0.00022507,2]
[349461183,1737193848289,-155.0,0.00022507,2]
[349461184,1737193848298,-155.0,0.00022507,2]
[349461185,1737193848307,-155.0,0.00022507,2]
[349461186,1737193848316,-155.0,0.00022507,2]
[349461187,1737193848325,-155.0,0.00022507,2]
[349461188,1737193848334,-155.0,0.00022507,2]
[349461189,1737193848342,-155.0,0.00022507,2]
[349461190,1737193848351,-155.0,0.00022507,2]
[349461191,1737193848360,-155.0,0.00022507,2]
[349461192,1737193848369,-155.0,0.00022507,2]
[349461193,1737193848379,-155.0,0.00022507,2]
[349461194,1737193848388,-155.0,0.00022507,2]
[349461195,1737193848397,-155.0,0.00022507,2]
[349461196,1737193848407,-155.0,0.00022507,2]
[349461198,1737193848416,-155.0,0.00022507,2]
[349461200,1737193848426,-155.0,0.00022507,2]
[349461202,1737193848436,-155.0,0.00022507,2]
[349461204,1737193848446,-109.79272969,0.00022507,2]
[349461207,1737193848465,-45.20727031,0.00022507,2]
[349461209,1737193848475,-155.0,0.00022507,2]
[349461211,1737193848484,-155.0,0.00022507,2]
[349461213,1737193848494,-155.0,0.00022507,2]
[349461215,1737193848503,-155.0,0.00022507,2]
[349461217,1737193848512,-155.0,0.00022507,2]
[349461219,1737193848522,-155.0,0.00022507,2]
[349461221,1737193848531,-155.0,0.00022507,2]
[349461223,1737193848540,-253.07,0.00022507,2]
[349461224,1737193848555,-253.0,0.0002251,8]
[349461226,1737193848565,-501.6190462,0.00022521,2]
[349461228,1737193848575,-207.99231028,0.00022521,2]
[349461230,1737193848583,-1368.38191979,0.00022521,3]
[349461232,1737193848593,-19103.0977611,0.0002258,60]
[349461234,1737193848602,-1368.38191979,0.0002259,3]
[349461236,1737193848612,-500.0,0.00022602,3]
[349461238,1737193848621,-500.0,0.00022602,3]
[349461240,1737193848630,-517.16,0.00022602,2]
[349461242,1737193848640,-508.38043664,0.00022602,3]
[349461244,1737193848649,-500.0,0.00022602,3]
[349461246,1737193848659,-500.0,0.00022602,3]
[349461248,1737193848668,-500.0,0.00022602,3]
[349461250,1737193848677,-500.0,0.00022602,3]
[349461252,1737193848687,-500.0,0.00022602,3]
[349461254,1737193848697,-500.0,0.00022602,3]
[349461256,1737193848706,-2224.54,0.00022602,3]
[349461258,1737193848715,-500.0,0.00022602,3]
[349461260,1737193848725,-500.0,0.00022602,3]
[349461262,1737193848735,-508.67,0.00022602,3]
[349461264,1737193848744,-500.0,0.00022602,3]
[349461266,1737193848754,-500.0,0.00022602,3]
[349461268,1737193848763,-500.0,0.00022602,3]
[349461270,1737193848774,-500.0,0.00022602,3]
[349461272,1737193848783,-3655.5,0.00022602,3]
[349461274,1737193848793,-500.0,0.00022602,3]
[349461276,1737193848802,-500.0,0.00022602,3]
[349461278,1737193848812,-500.0,0.00022602,3]
[349461280,1737193848823,-500.0,0.00022602,3]
[349461282,1737193848832,-500.0,0.00022602,3]
[349461284,1737193848842,-593.97,0.00022602,3]
[349461286,1737193848851,-500.0,0.00022602,3]
[349461288,1737193848861,-1483.05,0.00022602,3]
[349461290,1737193848870,-500.0,0.00022602,3]
[349461292,1737193848881,-1460.06,0.00022602,3]
[349461294,1737193848891,-5109.75,0.00022602,3]
[349461296,1737193848901,-500.0,0.00022602,3]
[349461298,1737193848911,-500.0,0.00022602,3]
[349461301,1737193848921,-500.0,0.00022602,3]
[349461303,1737193848930,-500.0,0.00022602,3]
[349461304,1737193848940,-165.67,0.00022602,3]
[349461307,1737193848950,-199.38,0.00022602,3]
[349461309,1737193848960,-420.0,0.00022635,2]
[349461311,1737193848969,-1368.38191979,0.00022659,3]
[349461312,1737193848982,-1368.38191979,0.00022728,3]
[349461314,1737193848991,-422.65,0.00022739,3]
[349461316,1737193849000,-500.0,0.00022739,3]
[349461319,1737193849010,-517.16,0.00022739,2]
[349461321,1737193849021,-500.0,0.00022739,3]
[349461323,1737193849030,-500.0,0.00022739,3]
[349461325,1737193849040,-500.0,0.00022739,3]
[349461327,1737193849049,-500.0,0.00022739,3]
[349461328,1737193849059,-254.06,0.00022739,3]
[349461330,1737193849071,-500.0,0.00022739,3]
[349461333,1737193849080,-2224.54,0.00022739,3]
[349461335,1737193849090,-500.0,0.00022739,3]
[349461337,1737193849099,-511.82591087,0.00022739,3]
[349461338,1737193849108,-500.0,0.00022739,3]
[349461340,1737193849118,-500.0,0.00022739,3]
[349461342,1737193849127,-500.0,0.00022739,3]
[349461344,1737193849137,-298.20315434,0.00022739,3]
[349461347,1737193849150,-201.79684566,0.00022739,3]
[349461349,1737193849159,-3655.5,0.00022739,3]
[349461351,1737193849168,-500.0,0.00022739,3]
[349461353,1737193849177,-500.0,0.00022739,3]
[349461355,1737193849187,-500.0,0.00022739,3]
[349461357,1737193849196,-500.0,0.00022739,3]
[349461359,1737193849205,-500.0,0.00022739,3]
[349461361,1737193849214,-593.97,0.00022739,3]
[349461363,1737193849223,-500.0,0.00022739,3]
[349461365,1737193849232,-1483.05,0.00022739,3]
[349461367,1737193849241,-629.29,0.00022739,3]
[349461369,1737193849249,-1460.06,0.00022739,3]
[349461370,1737193849259,-5109.75,0.00022739,3]
[349461373,1737193849269,-500.0,0.00022739,3]
[349461375,1737193849278,-173.43,0.00022739,3]
[349461377,1737193849288,-500.0,0.00022739,3]
[349461379,1737193849297,-500.0,0.00022739,3]
[349461381,1737193849307,-1368.38191979,0.00022797,3]
[349461383,1737193849317,-1368.38191979,0.00022866,3]
[349461384,1737193849327,-501.08916729,0.00022874,2]
[349461386,1737193849337,-1000.0,0.00022874,2]
[349461388,1737193849347,-179.78,0.00022876,3]
[349461390,1737193849357,-517.16,0.00022876,2]
[349461392,1737193849367,-500.0,0.00022876,3]
[349461394,1737193849376,-635.69,0.00022876,3]
[349461396,1737193849386,-500.0,0.00022876,3]
[349461398,1737193849395,-500.0,0.00022876,3]
[349461400,1737193849404,-500.0,0.00022876,3]
[349461402,1737193849414,-2224.54,0.00022876,3]
[349461404,1737193849423,-500.0,0.00022876,3]
[349461407,1737193849433,-500.0,0.00022876,3]
[349461409,1737193849443,-500.0,0.00022876,3]
[349461410,1737193849452,-500.0,0.00022876,3]
[349461412,1737193849462,-500.0,0.00022876,3]
[349461415,1737193849471,-3655.5,0.00022876,3]
[349461416,1737193849480,-427.81,0.00022876,3]
[349461418,1737193849490,-333.32,0.00022876,3]
[349461420,1737193849499,-500.0,0.00022876,3]
[349461422,1737193849509,-500.0,0.00022876,3]
[349461424,1737193849518,-243.55,0.00022876,3]
[349461426,1737193849528,-593.97,0.00022876,3]
[349461428,1737193849537,-500.0,0.00022876,3]
[349461430,1737193849546,-1483.05,0.00022876,3]
[349461432,1737193849555,-1460.06,0.00022876,3]
[349461434,1737193849565,-5109.75,0.00022876,3]
[349461436,1737193849574,-500.0,0.00022876,3]
[349461438,1737193849584,-500.0,0.00022876,3]
[349461440,1737193849594,-500.0,0.00022876,3]
[349461442,1737193849603,-158.0,0.00022898,2]
[349461444,1737193849612,-158.0,0.00022898,2]
[349461446,1737193849623,-433.27394973,0.000229,2]
[349461448,1737193849632,-1368.38191979,0.00022934,3]
[349461450,1737193849642,-500.0,0.00022973,2]
[349461452,1737193849652,-500.0,0.00022973,2]
[349461454,1737193849662,-500.0,0.00022973,2]
[349461456,1737193849671,-1181769.69766042,0.00023,15]
[349461465,1737193849740,-398.58932984,0.00023,15]
[349461467,1737193849751,-424.04944495,0.00023,15]
[349461802,1737193954238,165.324785,0.00013973,2]
[349461823,1737194880519,160.886199,0.00013973,2]
[349462429,1737195037943,-192.0092766,0.00018711,2]
[349462430,1737195037955,-192.0092766,0.000189,2]
[349462431,1737195037967,-234.155462,0.00020948,2]
[349462432,1737195037977,-220.77179555,0.00021519,2]
[349462433,1737195037991,-1615.22820445,0.00021519,2]
[349462434,1737195038003,-160.886199,0.00021661,2]
[349462435,1737195038015,-413.581,0.0002182,2]
[349462436,1737195038026,-300.0,0.00021916,2]
[349462437,1737195038038,-500.0,0.00021917,3]
[349462438,1737195038050,-500.0,0.00021917,2]
[349462439,1737195038063,-500.0,0.00021917,3]
[349462440,1737195038075,-500.0,0.00021917,3]
[349462441,1737195038085,-500.0,0.00021917,3]
[349462442,1737195038095,-500.0,0.00021917,3]
[349462443,1737195038106,-500.0,0.00021917,3]
[349462444,1737195038116,-344.42752863,0.00021917,3]
[349462463,1737195039894,-155.57247137,0.00021917,3]
[349462464,1737195039907,-342.16492539,0.00021917,3]
[349462465,1737195039918,-507.14,0.00021917,3]
[349462466,1737195039929,-500.0,0.00021917,3]
[349462467,1737195039941,-500.0,0.00021917,3]
[349462468,1737195039951,-1744.26,0.00021917,3]
[349462469,1737195039962,-500.0,0.00021917,3]
[349462470,1737195039972,-500.0,0.00021917,3]
[349462471,1737195039982,-500.0,0.00021917,3]
[349462472,1737195039993,-500.0,0.00021917,3]
[349462473,1737195040003,-500.0,0.00021917,3]
[349462474,1737195040015,-500.0,0.00021917,3]
[349462475,1737195040025,-2437.0,0.00021917,3]
[349462476,1737195040036,-500.0,0.00021917,3]
[349462477,1737195040047,-500.0,0.00021917,3]
[349462478,1737195040057,-500.0,0.00021917,3]
[349462479,1737195040068,-500.0,0.00021917,3]
[349462480,1737195040080,-500.0,0.00021917,3]
[349462481,1737195040090,-500.0,0.00021917,3]
[349462482,1737195040101,-973.37,0.00021917,3]
[349462483,1737195040111,-500.0,0.00021917,3]
[349462484,1737195040121,-3524.64,0.00021917,3]
[349462485,1737195040131,-988.7,0.00021917,3]
[349462486,1737195040142,-500.0,0.00021917,3]
[349462487,1737195040152,-500.0,0.00021917,3]
[349462488,1737195040163,-500.0,0.00021917,3]
[349462489,1737195040173,-718.70574835,0.00021954,2]
[349462490,1737195040184,-235.317,0.00021954,2]
[349462491,1737195040194,-164.24622748,0.00021954,2]
[349462492,1737195040204,-10200.5599581,0.00022,2]
[349462493,1737195040214,-500.0,0.00022054,2]
[349462494,1737195040224,-500.0,0.00022054,3]
[349462495,1737195040234,-500.0,0.00022054,3]
[349462496,1737195040245,-500.0,0.00022054,3]
[349462497,1737195040255,-500.0,0.00022054,3]
[349462498,1737195040266,-500.0,0.00022054,3]
[349462499,1737195040276,-195.5,0.00022054,3]
[349462500,1737195040288,-1744.26,0.00022054,3]
[349462501,1737195040298,-500.0,0.00022054,3]
[349462502,1737195040309,-500.0,0.00022054,3]
[349462503,1737195040322,-500.0,0.00022054,3]
[349462504,1737195040334,-500.0,0.00022054,3]
[349462505,1737195040344,-2437.0,0.00022054,3]
[349462506,1737195040356,-640.51,0.00022054,3]
[349462507,1737195040366,-500.0,0.00022054,3]
[349462508,1737195040377,-500.0,0.00022054,3]
[349462509,1737195040389,-500.0,0.00022054,3]
[349462510,1737195040400,-973.37,0.00022054,3]
[349462511,1737195040411,-3524.64,0.00022054,3]
[349462512,1737195040421,-988.7,0.00022054,3]
[349462513,1737195040431,-500.0,0.00022054,3]
[349462514,1737195040442,-500.0,0.00022054,3]
[349462515,1737195040452,-500.0,0.00022054,3]
[349462516,1737195040462,-500.0,0.00022191,2]
[349462517,1737195040611,-500.0,0.00022191,3]
[349462518,1737195040625,-212.86,0.00022191,3]
[349462519,1737195040635,-500.0,0.00022191,3]
[349462520,1737195040645,-500.0,0.00022191,3]
[349462521,1737195040654,-500.0,0.00022191,3]
[349462522,1737195040664,-1744.26,0.00022191,3]
[349462523,1737195040673,-234.7388,0.00022191,3]
[349462524,1737195040682,-534.97072115,0.00022191,3]
[349462525,1737195040692,-500.0,0.00022191,3]
[349462526,1737195040701,-500.0,0.00022191,3]
[349462527,1737195040710,-2437.0,0.00022191,3]
[349462528,1737195040719,-500.0,0.00022191,3]
[349462529,1737195040729,-500.0,0.00022191,3]
[349462530,1737195040738,-500.0,0.00022191,3]
[349462531,1737195040748,-973.37,0.00022191,3]
[349462532,1737195040757,-3524.64,0.00022191,3]
[349462533,1737195040767,-988.7,0.00022191,3]
[349462534,1737195040776,-549.84,0.00022191,3]
[349462535,1737195040786,-500.0,0.00022191,3]
[349462536,1737195040795,-551.85602576,0.00022191,3]
[349462537,1737195040805,-480.0,0.0002227,7]
[349462538,1737195040815,-395.0,0.00022295,2]
[349462539,1737195040824,-500.0,0.00022328,2]
[349462540,1737195040836,-500.0,0.00022328,3]
[349462541,1737195040845,-500.0,0.00022328,3]
[349462542,1737195040855,-500.0,0.00022328,3]
[349462543,1737195040864,-371.32637464,0.00022328,3]
[349462544,1737195040878,-128.67362536,0.00022328,3]
[349462545,1737195040887,-1744.26,0.00022328,3]
[349462546,1737195040897,-392.3,0.00022328,3]
[349462547,1737195040906,-500.0,0.00022328,3]
[349462548,1737195040915,-2437.0,0.00022328,3]
[349462549,1737195040925,-500.0,0.00022328,3]
[349462550,1737195040934,-500.0,0.00022328,3]
[349462551,1737195040944,-500.0,0.00022328,3]
[349462552,1737195040953,-973.37,0.00022328,3]
[349462553,1737195040963,-3524.64,0.00022328,3]
[349462554,1737195040972,-988.7,0.00022328,3]
[349462555,1737195040981,-500.0,0.00022328,3]
[349462556,1737195040991,-500.0,0.00022465,2]
[349462557,1737195041000,-500.0,0.00022465,3]
[349462558,1737195041010,-500.0,0.00022465,3]
[349462559,1737195041019,-498.12928996,0.00022465,3]
[349462602,1737195045820,-1.87071004,0.00022465,3]
[349462603,1737195045830,-500.0,0.00022465,3]
[349462604,1737195045840,-468.00307858,0.00022465,3]
[349462644,1737195140470,257.27,0.00025,120]
[349462652,1737195761798,166.499954,0.00013973,2]
[349462653,1737195880508,3002.0,0.00025,120]
[349462677,1737196169263,196.92329652,0.00025,120]
[349462806,1737196237415,-914.30349426,0.00017728,2]
[349462808,1737196237425,-914.30349426,0.00017907,2]
[349462810,1737196237434,-300.0,0.00019999,2]
[349462812,1737196237444,-1002.2909375,0.0002,10]
[349462814,1737196237454,-21768.75293269,0.0002,2]
[349462815,1737196237464,-203.142631,0.00020495,2]
[349462816,1737196237473,-420.0,0.00021777,2]
[349462817,1737196237483,-161.96782196,0.00021817,2]
[349462819,1737196237493,-396.286,0.0002182,2]
[349462821,1737196237503,-5269.69578848,0.00021917,5]
[349462822,1737196237512,-679.13533011,0.00021917,5]
[349462823,1737196237522,-151.16,0.00021917,2]
[349462824,1737196237531,-500.0,0.00021917,3]
[349462825,1737196237541,-500.0,0.00021917,3]
[349462826,1737196237551,-500.0,0.00021917,3]
[349462827,1737196237560,-500.0,0.00021917,3]
[349462828,1737196237569,-506.94147771,0.00021917,3]
[349462829,1737196237578,-500.0,0.00021917,3]
[349462830,1737196237588,-500.0,0.00021917,3]
[349462831,1737196237598,-500.0,0.00021917,3]
[349462832,1737196237607,-500.0,0.00021917,3]
[349462833,1737196237617,-500.0,0.00021917,3]
[349462834,1737196237627,-284.674,0.00021917,2]
[349462835,1737196237640,-500.0,0.00021917,3]
[349462836,1737196237650,-500.0,0.00021917,3]
[349462837,1737196237659,-500.0,0.00021917,3]
[349462838,1737196237669,-500.0,0.00021917,3]
[349462839,1737196237678,-500.0,0.00021917,3]
[349462840,1737196237689,-500.0,0.00021917,3]
[349462841,1737196237698,-500.0,0.00021917,3]
[349462842,1737196237708,-500.0,0.00021917,3]
[349462843,1737196237718,-500.0,0.00021917,3]
[349462845,1737196237727,-500.0,0.00021917,3]
[349462847,1737196237737,-500.0,0.00021917,3]
[349462848,1737196237747,-535.68786045,0.00021917,3]
[349462849,1737196237755,-500.0,0.00021917,3]
[349462850,1737196237765,-500.0,0.00021917,3]
[349462851,1737196237774,-500.0,0.00021917,3]
[349462852,1737196237784,-500.0,0.00021917,3]
[349462853,1737196237793,-500.0,0.00021917,3]
[349462855,1737196237803,-500.0,0.00021917,3]
[349462857,1737196237814,-500.0,0.00021917,3]
[349462859,1737196237824,-504.29,0.00021917,3]
[349462861,1737196237835,-500.0,0.00021917,3]
[349462862,1737196237845,-500.0,0.00021917,3]
[349462863,1737196237854,-500.0,0.00021917,3]
[349462864,1737196237864,-500.0,0.00021917,3]
[349462865,1737196237878,-500.0,0.00021917,3]
[349462866,1737196237888,-500.0,0.00021917,3]
[349462867,1737196237899,-500.0,0.00021917,3]
[349462869,1737196237909,-500.0,0.00021917,3]
[349462870,1737196237919,-500.0,0.00021917,3]
[349462872,1737196237928,-500.0,0.00021917,3]
[349462873,1737196237939,-500.0,0.00021917,3]
[349462874,1737196237949,-500.0,0.00021917,3]
[349462875,1737196237958,-595.49,0.00021917,3]
[349462876,1737196237968,-500.0,0.00021917,3]
[349462877,1737196237978,-500.0,0.00021917,3]
[349462878,1737196237988,-500.0,0.00021917,3]
[349462879,1737196237997,-500.0,0.00021917,3]
[349462880,1737196238009,-500.0,0.00021917,3]
[349462881,1737196238018,-500.0,0.00021917,3]
[349462882,1737196238027,-500.0,0.00021917,3]
[349462883,1737196238037,-500.0,0.00021917,3]
[349462884,1737196238046,-500.0,0.00021917,3]
[349462885,1737196238056,-500.0,0.00021917,3]
[349462886,1737196238066,-500.0,0.00021917,3]
[349462887,1737196238076,-500.0,0.00021917,3]
[349462888,1737196238085,-500.0,0.00021917,3]
[349462889,1737196238095,-500.0,0.00021917,3]
[349462890,1737196238104,-275.3440797,0.00021917,3]
[349462891,1737196238114,-500.0,0.00021917,3]
[349462892,1737196238128,-562.37,0.00021917,3]
[349462893,1737196238138,-500.0,0.00021917,3]
[349462894,1737196238147,-500.0,0.00021917,3]
[349462895,1737196238157,-500.0,0.00021917,3]
[349462896,1737196238166,-500.0,0.00021917,3]
[349462897,1737196238176,-500.0,0.00021917,3]
[349462898,1737196238186,-500.0,0.00021917,3]
[349462899,1737196238195,-500.0,0.00021917,3]
[349462900,1737196238204,-187.2257504,0.00021917,3]
[349462901,1737196238213,-500.0,0.00021917,3]
[349462902,1737196238223,-500.0,0.00021917,3]
[349462903,1737196238233,-500.0,0.00021917,3]
[349462904,1737196238243,-500.0,0.00021917,3]
[349462905,1737196238253,-500.0,0.00021917,3]
[349462906,1737196238263,-500.0,0.00021917,3]
[349462907,1737196238272,-500.0,0.00021917,3]
[349462908,1737196238282,-500.0,0.00021917,3]
[349462909,1737196238291,-500.0,0.00021917,3]
[349462911,1737196238301,-500.0,0.00021917,3]
[349462913,1737196238310,-500.0,0.00021917,3]
[349462914,1737196238319,-500.0,0.00021917,3]
[349462915,1737196238329,-500.0,0.00021917,3]
[349462916,1737196238339,-500.0,0.00021917,3]
[349462917,1737196238348,-500.0,0.00021917,3]
[349462918,1737196238358,-500.0,0.00021917,3]
[349462919,1737196238369,-500.0,0.00021917,2]
[349462920,1737196238379,-500.0,0.00021917,3]
[349462921,1737196238388,-500.0,0.00021917,3]
[349462922,1737196238398,-500.0,0.00021917,3]
[349462923,1737196238407,-500.0,0.00021917,3]
[349462924,1737196238416,-500.0,0.00021917,3]
[349462925,1737196238425,-500.0,0.00021917,3]
[349462926,1737196238434,-500.0,0.00021917,3]
[349462927,1737196238443,-500.0,0.00021917,3]
[349462928,1737196238453,-500.0,0.00021917,3]
[349462929,1737196238463,-500.0,0.00021917,3]
[349462930,1737196238473,-500.0,0.00021917,3]
[349462931,1737196238483,-500.0,0.00021917,3]
[349462932,1737196238492,-500.0,0.00021917,3]
[349462933,1737196238501,-500.0,0.00021917,3]
[349462934,1737196238511,-500.0,0.00021917,3]
[349462935,1737196238520,-500.0,0.00021917,3]
[349462936,1737196238530,-500.0,0.00021917,3]
[349462937,1737196238539,-500.0,0.00021917,3]
[349462938,1737196238549,-500.0,0.00021917,3]
[349462939,1737196238558,-500.0,0.00021917,3]
[349462940,1737196238567,-500.0,0.00021917,3]
[349462941,1737196238577,-500.0,0.00021917,3]
[349462942,1737196238586,-500.0,0.00021917,3]
[349462943,1737196238595,-500.0,0.00021917,3]
[349462944,1737196238605,-439.91707984,0.00021917,3]
[349462945,1737196238615,-546.42,0.00021917,3]
[349462946,1737196238627,-500.0,0.00021917,3]
[349462947,1737196238639,-500.0,0.00021917,3]
[349462948,1737196238649,-500.0,0.00021917,3]
[349462949,1737196238659,-500.0,0.00021917,3]
[349462950,1737196238670,-514.2,0.00021917,3]
[349462951,1737196238681,-500.0,0.00021917,3]
[349462952,1737196238691,-500.0,0.00021917,3]
[349462953,1737196238701,-4976.57,0.00021917,3]
[349462954,1737196238710,-500.0,0.00021917,3]
[349462955,1737196238720,-500.0,0.00021917,3]
[349462956,1737196238730,-500.0,0.00021917,3]
[349462957,1737196238739,-500.0,0.00021917,3]
[349462958,1737196238748,-500.0,0.00021917,3]
[349462959,1737196238758,-500.0,0.00021917,3]
[349462960,1737196238767,-500.0,0.00021917,3]
[349462961,1737196238776,-500.0,0.00021917,3]
[349462962,1737196238786,-500.0,0.00021917,3]
[349462963,1737196238795,-500.0,0.00021917,3]
[349462964,1737196238805,-500.0,0.00021917,3]
[349462965,1737196238815,-500.0,0.00021917,3]
[349462966,1737196238825,-1315.57,0.00021917,3]
[349462967,1737196238834,-500.0,0.00021917,3]
[349462968,1737196238843,-500.0,0.00021917,3]
[349462969,1737196238853,-599.96,0.00021917,3]
[349462970,1737196238862,-500.0,0.00021917,3]
[349462971,1737196238874,-500.0,0.00021917,3]
[349462972,1737196238884,-500.0,0.00021917,3]
[349462973,1737196238894,-500.0,0.00021917,3]
[349462974,1737196238904,-500.0,0.00021917,3]
[349462975,1737196238914,-500.0,0.00021917,3]
[349462976,1737196238925,-500.0,0.00021917,3]
[349462977,1737196238935,-500.0,0.00021917,3]
[349462978,1737196238945,-500.0,0.00021917,3]
[349462979,1737196238955,-500.0,0.00021917,3]
[349462980,1737196238965,-633.83606751,0.00021917,3]
[349462981,1737196238975,-500.0,0.00021917,3]
[349462982,1737196238985,-500.0,0.00021917,3]
[349462983,1737196238995,-343.522568,0.00021917,3]
[349462984,1737196239004,-500.0,0.00021917,3]
[349462985,1737196239014,-500.0,0.00021917,3]
[349462986,1737196239023,-500.0,0.00021917,3]
[349462987,1737196239033,-500.0,0.00021917,3]
[349462988,1737196239042,-500.0,0.00021917,3]
[349462989,1737196239051,-500.0,0.00021917,3]
[349462990,1737196239060,-500.0,0.00021917,3]
[349462991,1737196239069,-500.0,0.00021917,3]
[349462992,1737196239078,-621.85,0.00021917,3]
[349462993,1737196239088,-500.0,0.00021917,3]
[349462994,1737196239098,-500.0,0.00021917,3]